bitfinex-derivatives/quotes_ETHF0:USTF0_20250126
["timestamp","ask_amount","ask_price","bid_price","bid_amount"]
[1737875746138,2.42191551,3342.5,3342.4,0.59851]
[1737875752654,2.42191551,3342.5,3342.4,3.80631]
[1737875756753,2.42191551,3342.5,3342.4,44.60631]
[1737875758261,1.92631551,3342.5,3342.4,44.60631]
[1737875759850,0.96471551,3342.5,3342.4,44.60631]
[1737875760055,0.96471551,3342.7,3342.6,0.59848]
[1737875761156,1.46381551,3342.9,3342.5,1.0178]
[1737875761357,1.46381551,3342.9,3342.8,0.59845]
[1737875763861,1.46381551,3342.9,3342.8,3.80625]
[1737875764558,0.4991,3342.9,3342.8,3.80625]
[1737875766262,1.09753,3342.9,3342.8,3.2078]
[1737875768062,1.47087586,3342.9,3342.8,3.2078]
[1737875768262,0.4991,3342.9,3342.8,3.2078]
[1737875770149,0.87250079,3342.9,3342.7,0.59845]
[1737875770353,0.96471551,3342.8,3342.7,0.59845]
[1737875770552,0.96471551,3342.8,3342.4,3.2078]
[1737875770753,0.96471551,3342.5,3342.4,3.2078]
[1737875770956,0.96471551,3342.5,3342.4,3.80631]
[1737875772154,0.96471551,3342.5,3342.4,0.59851]
[1737875772464,0.96471551,3342.5,3342.4,3.80631]
[1737875773162,0.96471551,3342.5,3342.4,3.2078]
[1737875773163,1.56321551,3342.5,3342.4,3.2078]
[1737875778470,0.96471551,3342.5,3342.4,3.2078]
[1737875782774,1.56321551,3342.5,3342.4,3.2078]
[1737875784979,0.96471551,3342.5,3342.4,3.2078]
[1737875786375,1.56321551,3342.5,3342.4,3.2078]
[1737875787978,1.56321551,3342.5,3342.3,0.59853]
[1737875788178,0.481,3342.4,3342.3,0.59853]
[1737875789782,1.07953,3342.4,3342.2,3.2107964]
[1737875789970,1.47481551,3342.3,3342.2,3.2107964]
[1737875791184,2.07334551,3342.3,3342.2,3.2107964]
[1737875791882,1.47481551,3342.3,3342.2,3.2107964]
[1737875795387,0.96471551,3342.3,3342.2,3.8093464]
[1737875796480,0.96471551,3342.3,3342.2,44.6093464]
[1737875797685,0.96471551,3342.3,3342.2,3.8093464]
[1737875800389,1.56324551,3342.3,3342.2,3.2107964]
[1737875800689,2.04644551,3342.3,3342.2,3.2107964]
[1737875804988,1.44791551,3342.3,3342.2,3.2107964]
[1737875805788,2.04644551,3342.3,3342.2,3.2107964]
[1737875807492,3.01116102,3342.3,3342.2,0.0029964]
[1737875807797,3.38483818,3342.3,3342.2,0.0029964]
[1737875811299,2.78630818,3342.3,3341.4,1.0277]
[1737875811503,0.96471551,3341.5,3341.4,1.62639]
[1737875826432,0.96471551,3341.5,3341.4,4.83419]
[1737875840242,0.96471551,3341.5,3341.4,5.07749031]
[1737875845447,0.96471551,3341.5,3341.4,4.32579]
[1737875845645,0.96471551,3341.5,3341.4,3.80649]
[1737875849853,0.96471551,3341.5,3341.4,0.59869]
[1737875850251,0.96471551,3341.5,3341.4,3.80649]
[1737875866870,0.96471551,3341.5,3341.4,0.59869]
[1737875867077,0.96471551,3341.5,3341.4,3.80649]
[1737875872281,0.96471551,3341.5,3341.4,0.59869]
[1737875872483,0.96471551,3341.5,3341.4,3.80649]
[1737875877484,0.96471551,3341.7,3341.4,3.2078]
[1737875877686,0.96471551,3341.7,3341.6,0.59866]
[1737875879583,0.96471551,3341.7,3341.6,1.09436]
[1737875880190,0.48958758,3341.8,3341.6,1.09436]
[1737875880191,0.00448758,3341.8,3341.6,0.4957]
[1737875880390,0.00448758,3341.8,3341.7,0.59864]
[1737875883489,0.00448758,3341.8,3341.7,3.80644]
[1737875886882,0.00448758,3341.8,3341.7,44.60644]
[1737875888094,0.00448758,3341.8,3341.7,45.57115551]
[1737875888885,0.00448758,3341.8,3341.7,44.60644]
[1737875894593,0.51398758,3341.8,3341.7,44.60644]
[1737875894787,1.00008758,3341.8,3341.7,44.60644]
[1737875897104,1.00008758,3341.8,3341.7,3.80644]
[1737875901205,1.00008758,3341.8,3341.7,0.59864]
[1737875906398,0.00448758,3341.8,3341.7,0.59864]
[1737875906596,0.00448758,3341.8,3341.7,1.56624]
[1737875908302,0.48998758,3341.8,3341.7,1.56624]
[1737875908799,0.48998758,3341.8,3341.7,0.59864]
[1737875909008,1.01008758,3341.8,3341.7,0.59864]
[1737875914406,0.48998758,3341.8,3341.7,0.59864]
[1737875917307,0.48998758,3341.8,3341.7,3.80644]
[1737875919913,0.48998758,3341.8,3341.7,0.59864]
[1737875920408,0.48998758,3341.8,3341.7,4.04116467]
[1737875921613,0.48998758,3341.8,3341.7,3.80644]
[1737875926711,1.46981551,3342.3,3342.2,0.59855]
[1737875926914,0.96471551,3343.0,3342.4,0.59852]
[1737875926915,1.94431551,3342.5,3342.4,0.59852]
[1737875928407,1.94431551,3342.5,3342.4,41.39852]
[1737875932714,1.94431551,3342.5,3342.4,0.59852]
[1737875940525,0.51588758,3342.8,3342.7,0.59846]
[1737875940821,0.51588758,3342.8,3342.7,3.80626]
[1737875941025,1.02198758,3342.8,3342.7,3.80626]
[1737875941717,0.00448758,3342.8,3342.7,3.80626]
[1737875944423,0.51478758,3342.8,3342.7,3.80626]
[1737875948831,0.99618758,3342.8,3342.7,3.80626]
[1737875952725,0.00448758,3342.8,3342.7,3.80626]
[1737875953439,0.00448758,3342.8,3342.7,4.32496]
[1737875954837,1e-08,3342.8,3342.7,5.28967551]
[1737875955839,1.47901551,3343.3,3343.2,0.59837]
[1737875955840,0.5143,3343.3,3343.2,0.59837]
[1737875956045,0.5143,3343.3,3343.2,3.80617]
[1737875956239,1.47901551,3343.3,3343.2,3.80617]
[1737875956928,1.47901551,3343.3,3343.2,44.60617]
[1737875957928,1.47901551,3343.3,3343.2,3.80617]
[1737875971747,0.5143,3343.3,3343.2,3.80617]
[1737875972438,0.5171,3343.5,3343.4,0.59834]
[1737875975045,0.00448758,3343.6,3343.5,0.59832]
[1737875987857,0.00448758,3343.6,3343.2,3.2078]
[1737875988059,0.96471551,3343.3,3343.2,3.80617]
[1737876002470,0.00448758,3343.6,3343.2,3.2078]
[1737876002768,0.00448758,3343.6,3343.5,0.59832]
[1737876003568,0.00448758,3343.6,3343.2,3.2078]
[1737876003771,0.96471551,3343.3,3343.2,3.80617]
[1737876025992,0.96471551,3343.5,3343.2,3.2078]
[1737876026296,0.00448758,3343.6,3343.5,0.59832]
[1737876032901,0.48748758,3343.6,3343.5,0.59832]
[1737876039395,0.48748758,3343.6,3343.2,3.2078]
[1737876039604,0.4993,3343.5,3343.3,0.59835]
[1737876039804,0.5145,3343.4,3343.3,0.59835]
[1737876040801,1.47921551,3343.4,3343.3,0.59835]
[1737876056416,1.47921551,3343.4,3343.2,3.2078]
[1737876057012,2.07756551,3343.4,3343.2,3.80617]
[1737876057216,2.07755551,3343.4,3343.2,3.80616]
[1737876060317,2.07755551,3343.4,3343.2,0.59836]
[1737876065621,2.07755551,3343.4,3343.0,3.2078]
[1737876065814,0.96471551,3343.1,3343.0,3.80621]
[1737876073332,1.48151551,3343.1,3343.0,3.80621]
[1737876086048,1.48151551,3343.1,3343.0,0.59841]
[1737876088246,1.48151551,3343.1,3343.0,3.80621]
[1737876094549,1.48151551,3343.1,3343.0,0.59841]
[1737876099761,1.48151551,3343.1,3342.8,3.718]
[1737876100063,0.96471551,3342.9,3342.8,3.80624]
[1737876100262,1.56314551,3342.9,3342.8,3.2078]
[1737876104063,0.96471551,3342.9,3342.8,3.2078]
[1737876104459,1.56314551,3342.9,3342.8,3.2078]
[1737876105062,1.93711541,3342.9,3342.8,3.2078]
[1737876109269,0.59845,3342.8,3342.6,3.80627]
[1737876109469,0.96471551,3342.7,3342.6,3.80627]
[1737876109774,1.47651551,3342.7,3342.6,3.80627]
[1737876111769,2.07497551,3342.7,3342.6,3.2078]
[1737876112672,2.07497551,3342.7,3342.6,3.80628]
[1737876112673,1.47651551,3342.7,3342.6,3.80628]
[1737876113070,2.07497551,3342.7,3342.6,3.80628]
[1737876114169,2.07497551,3342.7,3342.6,3.2078]
[1737876115666,2.07497551,3342.7,3342.6,3.80628]
[1737876116269,2.07497551,3342.7,3342.6,3.2078]
[1737876117683,0.59851,3342.5,3342.3,1.11082]
[1737876117874,1.56322551,3342.5,3342.3,1.11082]
[1737876123088,0.96471551,3342.5,3342.3,0.5123]
[1737876123291,0.96471551,3342.5,3342.4,0.59852]
[1737876124687,1.56323551,3342.5,3342.3,1.11083]
[1737876124882,0.59852,3342.4,3342.3,0.5123]
[1737876125387,1.56321551,3342.5,3342.2,0.59854]
[1737876125694,1.43961551,3342.3,3342.2,0.59854]
[1737876125883,0.96471551,3342.3,3342.2,0.59854]
[1737876128583,0.96471551,3342.3,3342.2,3.80634]
[1737876131193,0.96471551,3342.3,3342.2,4.29044]
[1737876133088,0.96471551,3342.5,3342.4,0.59852]
[1737876133687,0.96471551,3342.5,3342.4,41.39852]
[1737876133892,0.96471551,3342.7,3342.6,0.59848]
[1737876134188,0.96471551,3342.7,3342.6,3.80628]
[1737876136598,0.96471551,3342.9,3342.8,0.59845]
[1737876137490,0.96471551,3342.9,3342.8,1.08465]
[1737876137686,0.96471551,3343.1,3343.0,0.59841]
[1737876153209,0.96471551,3343.1,3342.9,3.2078]
[1737876153402,0.9699,3343.0,3342.9,3.80621]
[1737876154804,1.93461551,3343.0,3342.9,3.2078]
[1737876155009,2.53302551,3343.0,3342.9,3.2078]
[1737876155403,2.90631263,3343.0,3342.9,3.2078]
[1737876156205,0.9699,3343.0,3342.9,3.80623]
[1737876158015,0.9699,3343.0,3342.9,3.2078]
[1737876158208,2.53302551,3343.0,3342.9,3.2078]
[1737876159317,2.90650401,3343.0,3342.9,3.2078]
[1737876159615,2.90651401,3343.0,3342.9,3.2078]
[1737876160811,2.90651401,3343.0,3342.9,2.423]
[1737876161517,0.59849,3342.6,3342.5,3.2078]
[1737876161718,1.56320551,3342.6,3342.5,3.2078]
[1737876169824,0.96471551,3342.6,3342.5,3.8063]
[1737876170316,1.43631551,3342.6,3342.5,3.8063]
[1737876172614,1.43631551,3342.6,3342.5,0.5985]
[1737876173621,2.03479551,3342.6,3342.5,0.5985]
[1737876174220,1.43631551,3342.6,3342.5,0.5985]
[1737876175124,2.03479551,3342.6,3342.5,0.5985]
[1737876175319,2.03479551,3342.6,3342.1,3.21228757]
[1737876175520,2.03479551,3342.6,3342.1,3.81085757]
[1737876175521,0.96471551,3342.2,3342.1,3.81085757]
[1737876185633,1.3386242,3342.2,3342.1,3.81085757]
[1737876186933,0.96471551,3342.2,3342.1,3.81085757]
[1737876195645,1.33879789,3342.2,3342.1,3.81085757]
[1737876196051,1.33879789,3342.2,3342.1,0.60305757]
[1737876196245,1.33879789,3342.2,3342.1,3.81085757]
[1737876196649,0.96471551,3342.2,3342.1,3.81085757]
[1737876196951,1.33879984,3342.2,3342.1,3.81085757]
[1737876198051,0.96471551,3342.2,3342.1,3.81085757]
[1737876198345,1.33892564,3342.2,3342.1,3.81085757]
[1737876206662,0.96471551,3342.2,3342.1,3.81085757]
[1737876206962,0.96471551,3342.2,3342.1,4.31525757]
[1737876224776,0.96471551,3342.2,3342.1,3.81085757]
[1737876225071,1.92943102,3342.2,3342.1,3.81085757]
[1737876225573,2.30366282,3342.2,3342.1,3.81085757]
[1737876229273,1.33894731,3342.2,3342.1,3.81085757]
[1737876229477,0.96471551,3342.2,3342.1,3.81085757]
[1737876240883,0.96471551,3342.6,3342.5,0.5985]
[1737876241083,0.96471551,3342.6,3342.5,3.8063]
[1737876243273,0.96471551,3342.6,3342.5,44.6063]
[1737876250388,0.96471551,3342.6,3342.5,3.8063]
[1737876256689,0.96471551,3342.8,3342.7,0.59846]
[1737876269088,1.33951965,3342.8,3342.7,0.59846]
[1737876269697,1.33951965,3342.8,3342.5,3.80628]
[1737876269895,0.96471551,3342.6,3342.5,3.80628]
[1737876270091,1.33951965,3342.6,3342.5,3.80628]
[1737876270296,1.85291965,3342.6,3342.5,3.80628]
[1737876283703,1.85291965,3342.6,3342.1,0.00448757]
[1737876283900,0.96471551,3342.3,3342.2,0.59854]
[1737876286103,1.33845824,3342.3,3342.2,0.59854]
[1737876286304,0.96471551,3342.3,3342.2,0.59854]
[1737876290617,0.96471551,3342.3,3342.2,1.59354]
[1737876292105,0.96471551,3342.3,3342.2,1.08324]
[1737876295713,1.47751551,3342.5,3342.2,0.4847]
[1737876295915,0.96471551,3342.7,3342.6,0.59848]
[1737876296114,1.33840777,3342.7,3342.6,0.59848]
[1737876296319,1.33847589,3342.7,3342.6,0.59848]
[1737876296721,1.33847719,3342.7,3342.5,0.59849]
[1737876297019,0.96471551,3342.6,3342.5,0.59849]
[1737876297220,1.45721551,3342.6,3342.5,0.59849]
[1737876298020,2.979,3342.8,3342.3,0.9625]
[1737876298021,3.94371551,3342.8,3342.7,0.59846]
[1737876298317,4.31763337,3342.8,3342.7,0.59846]
[1737876298515,4.31763337,3342.8,3342.4,3.2078]
[1737876298717,0.37390178,3342.7,3342.5,0.5985]
[1737876299216,0.96471551,3342.6,3342.4,3.2078]
[1737876299416,1.0226,3342.5,3342.4,3.2078]
[1737876299618,1.89713823,3342.5,3342.4,3.2078]
[1737876300419,1.0226,3342.5,3342.4,3.80632]
[1737876300620,1.39660974,3342.5,3342.4,3.80632]
[1737876302523,0.96471551,3342.6,3342.5,0.5985]
[1737876302721,0.96471551,3342.6,3342.5,1.5828]
[1737876305722,0.96471551,3343.0,3342.9,0.59843]
[1737876309721,0.96471551,3343.2,3342.7,0.96471551]
[1737876309929,0.96471551,3343.2,3343.0,0.59841]
[1737876310617,0.96471551,3343.4,3343.3,0.59836]
[1737876312729,0.96920309,3343.6,3343.5,0.59832]
[1737876314834,0.00448758,3343.6,3343.5,4.77083551]
[1737876315234,0.00448758,3343.6,3343.5,3.80612]
[1737876317829,0.00448758,3343.6,3343.5,4.77083551]
[1737876319739,0.00448758,3343.6,3343.5,3.80612]
[1737876326939,0.00448758,3343.6,3343.5,4.04086856]
[1737876330642,0.00448758,3343.6,3343.5,3.80612]
[1737876346052,0.00448758,3343.6,3342.9,3.7179]
[1737876346349,2.04194242,3343.4,3343.3,0.59835]
[1737876347040,2.52724242,3343.4,3343.3,0.59835]
[1737876347750,1.45254021,3343.4,3342.9,3.2078]
[1737876348054,0.96724021,3343.0,3342.9,3.2078]
[1737876348638,1.93448042,3343.0,3342.4,3.2078]
[1737876348948,0.96724021,3342.5,3342.4,3.80632]
[1737876349643,2.56031231,3342.8,3342.4,3.2078]
[1737876349952,2.56031231,3342.8,3342.6,0.59847]
[1737876352647,0.5163,3342.8,3342.7,0.59846]
[1737876369769,1.48379278,3342.8,3342.7,0.59846]
[1737876381080,1.85774703,3342.8,3342.7,0.59846]
[1737876381580,1.48379278,3342.8,3342.7,0.59846]
[1737876381777,1.85775406,3342.8,3342.7,0.59846]
[1737876383774,1.85775406,3342.8,3342.6,0.4889]
[1737876384075,2.08224278,3342.8,3342.6,1.08737]
[1737876384276,1.48379278,3342.8,3342.6,0.4889]
[1737876384479,1.48379278,3342.8,3342.7,0.59846]
[1737876384686,2.45615293,3342.8,3342.7,0.59846]
[1737876386998,1.85770293,3342.8,3342.7,0.59846]
[1737876389195,2.45615293,3342.8,3342.7,0.59846]
[1737876391202,1.85770293,3342.8,3342.4,3.2078]
[1737876391394,0.96749278,3342.5,3342.4,3.80631]
[1737876391702,1.34132212,3342.5,3342.4,3.80631]
[1737876391907,1.82332212,3342.5,3342.4,3.80631]
[1737876392393,1.44949278,3342.5,3342.4,3.80631]
[1737876392794,1.82337287,3342.5,3342.4,3.80631]
[1737876394096,1.44949278,3342.5,3342.4,3.80631]
[1737876394495,1.82327592,3342.5,3342.4,3.80631]
[1737876395003,1.44949278,3342.5,3342.4,3.80631]
[1737876395395,2.04799278,3342.5,3342.4,0.59851]
[1737876395705,2.42175789,3342.5,3342.3,0.59852]
[1737876396003,1.48989278,3342.4,3342.3,0.59852]
[1737876398706,2.08841278,3342.4,3342.2,4.28464]
[1737876399609,2.08841278,3342.4,3342.2,3.6861]
[1737876399904,2.08841278,3342.4,3342.3,0.59853]
[1737876401307,1.48989278,3342.4,3342.3,0.59853]
[1737876405412,0.96749278,3342.4,3342.3,0.59853]
[1737876418922,1.96539278,3342.4,3342.3,0.59853]
[1737876420421,2.33949392,3342.4,3342.3,0.59853]
[1737876421918,1.49059278,3342.4,3342.3,0.59853]
[1737876422519,0.96749278,3342.4,3342.3,0.59853]
[1737876427217,0.96749278,3342.6,3342.2,0.4783]
[1737876427427,0.96749278,3342.6,3342.5,0.5985]
[1737876428418,0.96749278,3342.6,3342.5,3.8063]
[1737876429328,1.0119,3343.3,3342.7,0.59846]
[1737876429329,0.96749278,3342.8,3342.7,0.59846]
[1737876436334,1.95659278,3342.8,3342.7,0.59846]
[1737876445343,2.55505278,3342.8,3342.6,0.59847]
[1737876445547,0.59846,3342.7,3342.5,0.59849]
[1737876445848,1.56597278,3342.6,3342.4,1.11951]
[1737876446947,0.5985,3342.5,3342.3,0.59853]
[1737876447143,1.48169278,3342.4,3342.3,0.59853]
[1737876447342,1.99269278,3342.4,3342.3,0.59853]
[1737876455246,2.59122278,3342.4,3342.2,0.59855]
[1737876455446,0.5055,3342.3,3342.2,0.59855]
[1737876457250,0.59855,3342.2,3342.1,3.21228757]
[1737876457455,0.96749278,3342.2,3342.1,3.81085757]
[1737876457652,7.15429278,3342.2,3342.1,0.00448757]
[1737876457857,8.12604119,3342.2,3342.1,1e-08]
[1737876458955,5.14704119,3342.2,3342.1,1e-08]
[1737876464360,8.12604119,3342.2,3342.1,1e-08]
[1737876467057,8.12604119,3342.2,3341.3,41.3987]
[1737876467058,12.52749119,3342.2,3341.3,0.5987]
[1737876467364,0.96749278,3341.4,3341.3,0.5987]
[1737876480166,0.96749278,3341.4,3341.3,0.59871]
[1737876482974,0.59871,3341.3,3341.2,0.5233]
[1737876484075,1.07751,3341.3,3341.2,0.5233]
[1737876485988,1.45065409,3341.3,3341.2,0.5233]
[1737876486490,0.59875,3341.1,3341.0,3.21228758]
[1737876486685,2.53373556,3341.1,3341.0,0.00448758]
[1737876486884,2.90697657,3341.1,3341.0,0.00448758]
[1737876487381,1.93948379,3341.1,3341.0,0.00448758]
[1737876490091,1.56624278,3341.1,3341.0,0.00448758]
[1737876490291,1.93947284,3341.1,3341.0,0.00448758]
[1737876490486,1.93948077,3341.1,3341.0,0.00448758]
[1737876491090,2.90697355,3341.1,3341.0,0.00448758]
[1737876491279,1.56624278,3341.1,3341.0,0.00448758]
[1737876491485,2.08744278,3341.1,3341.0,0.00448758]
[1737876492689,2.46061261,3341.1,3341.0,0.00448758]
[1737876492991,2.08744278,3341.1,3341.0,0.00448758]
[1737876493792,2.46060066,3341.1,3341.0,0.00448758]
[1737876494293,3.05493556,3341.1,3341.0,0.00448758]
[1737876494497,3.42810849,3341.1,3341.0,0.00448758]
[1737876498499,3.42810849,3341.1,3340.2,0.4811]
[1737876498500,7.82935849,3341.1,3340.2,0.4811]
[1737876498696,0.59889,3340.3,3340.2,0.4811]
[1737876498990,0.37317293,3340.3,3340.0,8.23365]
[1737876499300,1.56642278,3340.1,3340.0,5.02585]
[1737876500492,0.96749278,3340.1,3340.0,5.02585]
[1737876500689,0.96749278,3340.3,3340.0,5.02585]
[1737876500997,0.96749278,3340.3,3340.2,0.59891]
[1737876501393,1.56639278,3340.3,3340.1,0.59892]
[1737876501692,0.96749278,3340.3,3340.0,5.52265]
[1737876501896,0.96749278,3340.1,3340.0,6.12159]
[1737876508490,0.96749278,3340.1,3340.0,5.62479]
[1737876509087,1.56642278,3340.1,3340.0,5.02585]
[1737876511101,2.04332278,3340.1,3340.0,5.02585]
[1737876512002,2.04141567,3340.1,3340.0,5.02585]
[1737876512708,1.56451567,3340.1,3340.0,5.02585]
[1737876518008,0.96558567,3340.1,3340.0,5.6248]
[1737876521113,4.17529278,3340.5,3340.4,0.59888]
[1737876522215,0.96749278,3340.5,3340.4,0.59888]
[1737876523705,0.96749278,3340.7,3340.3,1.4988]
[1737876523902,0.96749278,3340.7,3340.6,3.80662]
[1737876524106,3.7011,3341.3,3340.8,0.5988]
[1737876524107,0.96749278,3340.9,3340.8,0.5988]
[1737876524815,0.96749278,3340.9,3340.8,1.0718]
[1737876525011,0.96749278,3340.9,3340.8,1.5734]
[1737876527815,0.96749278,3340.9,3340.8,1.0718]
[1737876528019,0.96749278,3340.9,3340.8,0.5988]
[1737876528315,0.96749278,3340.9,3340.7,1.09831]
[1737876529819,1.56628278,3340.9,3340.7,1.09831]
[1737876530114,0.9539,3340.8,3340.7,1.09831]
[1737876533716,0.96749278,3340.9,3340.7,0.4995]
[1737876533917,0.96749278,3340.9,3340.8,0.5988]
[1737876541620,0.5126,3341.5,3340.7,0.4995]
[1737876541621,1.56621278,3341.3,3341.0,0.59877]
[1737876541824,1.56621278,3341.3,3341.2,0.59873]
[1737876541825,0.96749278,3341.3,3341.2,0.59873]
[1737876542222,0.96749278,3341.3,3341.1,1.07854]
[1737876542423,0.4777,3341.2,3341.1,1.07854]
[1737876542622,0.4777,3341.2,3341.1,0.59874]
[1737876543324,0.4777,3341.2,3341.0,3.2078]
[1737876543522,1.97709278,3341.1,3341.0,3.80656]
[1737876549738,0.59878,3341.0,3340.7,0.5988]
[1737876549933,0.96749278,3340.8,3340.7,0.5988]
[1737876551233,1.48599278,3340.8,3340.7,0.5988]
[1737876555140,2.08479278,3340.8,3340.6,1.07863]
[1737876556626,2.08479278,3340.8,3340.5,3.80665]
[1737876556833,0.96749278,3340.6,3340.5,3.80665]
[1737876557233,1.97519278,3340.6,3340.5,3.80665]
[1737876562040,2.57403278,3340.6,3340.5,3.2078]
[1737876562939,1.97519278,3340.6,3340.5,3.2078]
[1737876563141,2.57403278,3340.6,3340.5,3.2078]
[1737876568235,5.55303278,3340.6,3340.5,3.2078]
[1737876568938,0.59888,3340.4,3340.1,0.59891]
[1737876569135,0.96749278,3340.3,3340.2,0.59891]
[1737876569338,1.44219278,3340.3,3340.2,0.59891]
[1737876570041,2.04109278,3340.3,3340.1,0.59892]
[1737876570847,1.44219278,3340.3,3340.1,0.59892]
[1737876572241,1.44219278,3340.3,3340.0,5.02585]
[1737876572242,0.96749278,3340.2,3340.0,5.02585]
[1737876572443,5.77262278,3340.1,3340.0,5.02585]
[1737876572747,9.12511568,3340.1,3340.0,5.02585]
[1737876573146,6.14611568,3340.1,3340.0,5.02585]
[1737876573353,0.96749278,3339.4,3339.2,3.2078]
[1737876573544,1.4928,3339.3,3339.2,3.2078]
[1737876574047,1.4928,3339.3,3339.1,0.5991]
[1737876574251,0.96749278,3339.2,3339.0,0.59911]
[1737876574551,0.96749278,3339.1,3339.0,0.59911]
[1737876574753,1.93498556,3339.1,3338.9,0.4745]
[1737876574951,1.93498556,3339.1,3338.9,1.07363]
[1737876575151,1.93498556,3339.1,3339.0,0.59913]
[1737876575651,5.02764127,3339.1,3338.9,0.4745]
[1737876575951,5.02764127,3339.1,3338.5,6.99622307]
[1737876575952,2.04864127,3339.1,3338.5,6.99622307]
[1737876576149,0.59918,3338.7,3338.5,6.99622307]
[1737876576655,1.11218,3338.7,3338.5,6.99622307]
[1737876576852,1.11218,3338.7,3338.3,22.41558111]
[1737876576853,0.59923,3338.4,3338.3,22.41558111]
[1737876577040,0.59923,3338.4,3337.5,3.2078]
[1737876577041,8.64794258,3338.4,3337.5,3.2078]
[1737876577241,5.25644127,3337.6,3337.2,4.70410414]
[1737876577446,4.09728254,3337.3,3337.2,3.13130414]
[1737876577755,2.04864127,3337.3,3337.2,3.13130414]
[1737876578153,2.04864127,3337.3,3337.2,3.61170414]
[1737876579040,2.04864127,3337.3,3337.2,4.21115414]
[1737876579241,2.04864127,3337.3,3337.2,3.61170414]
[1737876579448,2.04864127,3337.6,3337.5,0.59939]
[1737876579749,2.04864127,3337.6,3337.3,3.2078]
[1737876580447,2.64802127,3337.6,3337.3,3.2078]
[1737876581456,2.04864127,3337.6,3337.3,3.2078]
[1737876582053,2.64802127,3337.6,3337.3,3.2078]
[1737876582257,2.04864127,3337.6,3337.3,3.2078]
[1737876582554,2.64803127,3337.6,3337.3,3.2078]
[1737876582759,2.04864127,3337.6,3337.3,3.2078]
[1737876583151,5.02764127,3337.6,3337.3,3.2078]
[1737876584951,5.02764127,3337.6,3337.4,40.8]
[1737876586061,5.02764127,3337.6,3337.4,41.39941]
[1737876586762,5.02764127,3337.6,3337.5,0.5994]
[1737876587773,5.02764127,3337.6,3337.4,41.39941]
[1737876589077,2.04864127,3337.6,3337.4,41.39941]
[1737876589278,2.04864127,3337.6,3337.4,40.8]
[1737876589580,2.04864127,3337.6,3337.4,41.3994]
[1737876589776,2.04864127,3337.6,3337.4,0.5994]
[1737876591579,2.04864127,3337.6,3337.5,0.5994]
[1737876591882,2.04864127,3337.6,3337.4,0.59941]
[1737876592182,0.00449452,3337.7,3337.4,3.2078]
[1737876592382,0.00449452,3337.7,3337.6,0.59938]
[1737876593981,2.04864127,3337.8,3337.4,3.2078]
[1737876594176,2.04864127,3337.8,3337.7,0.59936]
[1737876597790,0.00449452,3338.1,3338.0,0.59931]
[1737876598089,0.00449452,3338.1,3338.0,3.80711]
[1737876601180,0.00449452,3338.1,3337.8,0.511]
[1737876601386,0.59932,3337.9,3337.8,0.511]
[1737876601575,2.04864127,3338.0,3337.8,0.511]
[1737876601576,2.64795127,3338.0,3337.8,0.511]
[1737876602685,2.04864127,3338.0,3337.9,0.59932]
[1737876602883,2.04864127,3338.0,3337.8,0.511]
[1737876603190,2.04864127,3338.0,3337.8,1.11034]
[1737876604394,2.04864127,3338.0,3337.9,0.59932]
[1737876608283,2.52634127,3338.0,3337.9,0.59932]
[1737876609986,2.52634127,3338.0,3337.9,3.80712]
[1737876616194,0.4777,3338.0,3337.9,3.80712]
[1737876617293,0.4777,3338.0,3337.9,44.60712]
[1737876624788,0.4777,3338.0,3337.9,41.39932]
[1737876625292,0.4777,3338.0,3337.9,44.60712]
[1737876628700,0.4777,3338.0,3337.9,3.80712]
[1737876629501,0.4777,3338.0,3337.9,4.30612]
[1737876631500,0.00449452,3338.1,3338.0,0.59931]
[1737876631704,0.97474852,3338.1,3338.0,0.59931]
[1737876632006,0.97474852,3338.1,3338.0,41.39931]
[1737876639903,0.97474852,3338.1,3338.0,41.63910339]
[1737876641303,0.970254,3338.7,3338.6,0.5992]
[1737876647209,0.970254,3338.7,3338.3,3.2078]
[1737876647409,0.970254,3338.5,3338.4,0.59922]
[1737876648704,0.970254,3338.5,3338.4,1.11562]
[1737876649318,0.970254,3338.5,3338.4,0.59922]
[1737876652717,0.970254,3338.9,3338.3,5.676184]
[1737876652918,0.00449452,3339.0,3338.9,0.59914]
[1737876653215,0.00449452,3339.0,3338.9,3.80694]
[1737876653413,0.00449452,3339.0,3338.9,44.60694]
[1737876658220,0.00449452,3339.0,3338.9,3.80694]
[1737876660118,4.916,4339.2,3338.9,3.80694]
[1737876660119,2.04815556,3339.9,3338.9,3.2078]
[1737876660322,2.04815556,3339.9,3338.8,2.04815556]
[1737876660323,0.5192,3339.7,3339.4,3.2078]
[1737876660526,0.5192,3339.7,3339.6,0.59902]
[1737876661525,0.5192,3339.7,3339.4,3.2078]
[1737876661526,1.11821,3339.7,3339.4,3.80685]
[1737876661718,2.04815556,3339.6,3339.4,3.80685]
[1737876661919,0.5034,3339.5,3339.4,3.80685]
[1737876662121,0.5034,3339.5,3339.4,0.59905]
[1737876664821,0.5034,3339.5,3339.3,0.00449452]
[1737876665027,1.12015,3339.4,3339.3,0.00449452]
[1737876668015,1.52579282,3339.4,3339.3,0.00449452]
[1737876668527,1.52579282,3339.4,3338.9,3.2078]
[1737876668528,0.59913,3339.0,3338.9,3.2078]
[1737876668822,2.64728556,3339.0,3338.9,3.2078]
[1737876669428,2.04815556,3339.0,3338.3,3.2078]
[1737876669630,2.04815556,3338.5,3338.4,0.59922]
[1737876671621,2.54705556,3338.5,3338.4,0.59922]
[1737876675333,2.04815556,3338.8,3338.4,1.5189]
[1737876675527,2.04815556,3338.8,3338.7,0.59918]
[1737876675528,2.52475556,3338.8,3338.7,0.59918]
[1737876679327,2.52475556,3338.8,3338.6,0.59919]
[1737876680130,2.52475556,3338.8,3338.4,1.5189]
[1737876680334,2.52475556,3338.8,3338.7,0.59918]
[1737876681426,2.52475556,3338.8,3338.3,3.21229452]
[1737876681632,2.04815556,3338.4,3338.3,3.81153452]
[1737876682138,3.03625556,3338.4,3338.3,3.81153452]
[1737876685238,3.03625556,3338.4,3338.3,3.21229452]
[1737876685434,3.63548556,3338.4,3338.3,0.00449452]
[1737876685835,4.04116538,3338.4,3338.3,0.00449452]
[1737876687436,3.63548556,3338.4,3338.3,0.00449452]
[1737876687642,6.61448556,3338.4,3338.3,0.00449452]
[1737876688045,6.61448556,3338.4,3337.5,3.2078]
[1737876688046,13.06341112,3338.4,3337.5,3.2078]